fUST/lending_fUST_20240508
["ID","MTS","AMOUNT","RATE_DAILY","PERIOD"]
[326603540,1715129440604,-500.0,0.00015195,2]
[326603541,1715129440614,-500.0,0.00015196,2]
[326603542,1715129440623,-370.87043588,0.00015196,2]
[326603543,1715129440633,-500.0,0.00015196,2]
[326603544,1715129440645,-500.0,0.00015196,2]
[326603545,1715129440654,-509.58,0.00015196,2]
[326603546,1715129440667,-500.07191376,0.00015196,2]
[326603547,1715129440677,-500.0,0.00015196,2]
[326603548,1715129440687,-500.0,0.00015196,2]
[326603549,1715129440696,-516.37206186,0.00015196,2]
[326603550,1715129440706,-507.82771562,0.00015196,2]
[326603551,1715129440718,-500.0,0.00015196,2]
[326603552,1715129440728,-500.0,0.00015196,2]
[326603553,1715129440738,-500.0,0.00015196,2]
[326603554,1715129440748,-500.0,0.00015196,2]
[326603555,1715129440758,-500.0,0.00015196,2]
[326603556,1715129440768,-500.0,0.00015196,2]
[326603557,1715129440778,-500.0,0.00015196,2]
[326603558,1715129440788,-500.0,0.00015196,2]
[326603559,1715129440798,-500.0,0.00015196,2]
[326603560,1715129440808,-500.0,0.00015196,2]
[326603561,1715129440818,-500.0,0.00015196,2]
[326603562,1715129440828,-500.0,0.00015196,2]
[326603563,1715129440837,-500.0,0.00015196,2]
[326603564,1715129440847,-500.0,0.00015196,2]
[326603565,1715129440857,-500.0,0.00015196,2]
[326603566,1715129440867,-323.82295741,0.00015196,2]
[326603567,1715129440877,-485.4362311,0.00015196,2]
[326603568,1715129440886,-500.0,0.00015196,2]
[326603569,1715129440896,-500.0,0.00015196,2]
[326603570,1715129440907,-500.0,0.00015196,2]
[326603571,1715129440918,-500.0,0.00015196,2]
[326603572,1715129440928,-500.0,0.00015196,2]
[326603573,1715129440937,-500.0,0.00015196,2]
[326603574,1715129440947,-500.0,0.00015196,2]
[326603575,1715129440957,-500.0,0.00015196,2]
[326603576,1715129440967,-500.0,0.00015196,2]
[326603577,1715129440977,-164.55,0.00015196,2]
[326603578,1715129440987,-500.0,0.00015196,2]
[326603579,1715129440997,-500.0,0.00015196,2]
[326603580,1715129441007,-500.0,0.00015196,2]
[326603581,1715129441017,-501.71709557,0.00015196,2]
[326603582,1715129441027,-500.0,0.00015196,2]
[326603583,1715129441037,-500.0,0.00015196,2]
[326603584,1715129441050,-500.0,0.00015196,2]
[326603585,1715129441060,-309.30495823,0.00015196,2]
[326603586,1715129441070,-500.0,0.00015196,2]
[326603587,1715129441079,-503.71519295,0.00015196,2]
[326603588,1715129441090,-500.0,0.00015196,2]
[326603589,1715129441099,-500.0,0.00015196,2]
[326603590,1715129441111,-500.0,0.00015196,2]
[326603591,1715129441121,-769.01,0.00015196,2]
[326603592,1715129441134,-500.0,0.00015196,2]
[326603593,1715129441145,-500.0,0.00015196,2]
[326603594,1715129441155,-500.0,0.00015196,2]
[326603595,1715129441167,-500.0,0.00015196,2]
[326603596,1715129441176,-500.0,0.00015196,2]
[326603597,1715129441185,-500.0,0.00015196,2]
[326603598,1715129441194,-502.0084024,0.00015196,2]
[326603599,1715129441377,-313.42466017,0.00015196,2]
[326603600,1715129441386,-238.06251192,0.00015196,2]
[326603601,1715129441397,-1160.64,0.00015196,2]
[326603602,1715129441406,-500.0,0.00015196,2]
[326603603,1715129441418,-500.0,0.00015196,2]
[326603604,1715129441427,-500.0,0.00015196,2]
[326603605,1715129441437,-500.0,0.00015196,2]
[326603606,1715129441447,-500.0,0.00015196,2]
[326603607,1715129441456,-683.07,0.00015196,2]
[326603608,1715129441466,-500.0,0.00015196,2]
[326603609,1715129441475,-500.0,0.00015196,2]
[326603610,1715129441485,-502.57475793,0.00015196,2]
[326603611,1715129441495,-500.0,0.00015196,2]
[326603612,1715129441504,-619.57524388,0.00015196,2]
[326603613,1715129441514,-227.35372262,0.00015196,2]
[326603614,1715129441523,-500.0,0.00015196,2]
[326603615,1715129441532,-500.0,0.00015196,2]
[326603616,1715129441542,-500.0,0.00015196,2]
[326603617,1715129441551,-500.0,0.00015196,2]
[326603618,1715129441560,-500.0,0.00015196,2]
[326603619,1715129441569,-500.0,0.00015196,2]
[326603620,1715129441579,-506.547353,0.00015196,2]
[326603621,1715129441588,-500.0,0.00015196,2]
[326603622,1715129441597,-500.0,0.00015196,2]
[326603623,1715129441607,-501.24092893,0.00015196,2]
[326603624,1715129441616,-501.24575537,0.00015196,2]
[326603625,1715129441626,-500.94397123,0.00015196,2]
[326603626,1715129441635,-500.0,0.00015196,2]
[326603627,1715129441645,-500.0,0.00015196,2]
[326603628,1715129441655,-465.74112308,0.00015196,2]
[326603629,1715129441665,-411.04754987,0.00015196,2]
[326603630,1715129441674,-500.0,0.00015196,2]
[326603631,1715129441684,-500.0,0.00015196,2]
[326603632,1715129441693,-500.0,0.00015196,2]
[326603633,1715129441702,-251.27224433,0.00015196,2]
[326603634,1715129441712,-439.13162946,0.00015198,2]
[326603635,1715129441722,-500.0,0.00015198,2]
[326603636,1715129441732,-500.0,0.00015198,2]
[326603637,1715129441741,-500.0,0.00015198,2]
[326603638,1715129441751,-500.0,0.00015468,2]
[326603639,1715129441760,-3158.33,0.00015468,2]
[326603640,1715129441771,-3570.57,0.00015468,2]
[326603641,1715129441781,-500.0,0.00015468,2]
[326603642,1715129441790,-500.0,0.00015468,2]
[326603643,1715129441800,-500.0,0.00015468,2]
[326603644,1715129441809,-500.0,0.00015468,2]
[326603645,1715129441820,-500.0,0.00015468,2]
[326603646,1715129441830,-2274.47,0.00015468,2]
[326603647,1715129441839,-875.9,0.00015468,2]
[326603648,1715129441849,-1275.34,0.00015468,2]
[326603649,1715129441859,-500.0,0.00015468,2]
[326603650,1715129441868,-500.0,0.00015468,2]
[326603651,1715129441878,-223.6823407,0.00015469,2]
[326603652,1715129441888,-528.7,0.00015469,2]
[326603653,1715129441897,-500.0,0.00015469,2]
[326603654,1715129441907,-500.0,0.00015469,2]
[326603655,1715129441918,-1145.06,0.00015469,2]
[326603656,1715129441927,-580.23,0.00015469,2]
[326603657,1715129441936,-500.0,0.00015469,2]
[326603658,1715129441946,-500.0,0.00015469,2]
[326603659,1715129441956,-560.63,0.00015469,2]
[326603660,1715129441966,-500.0,0.00015469,2]
[326603661,1715129441975,-500.0,0.00015469,2]
[326603662,1715129441985,-500.0,0.00015469,2]
[326603663,1715129441995,-1134.47,0.00015469,2]
[326603664,1715129442004,-151.0,0.00015469,2]
[326603665,1715129442014,-1065.98,0.00015469,2]
[326603666,1715129442023,-151.0,0.00015469,2]
[326603667,1715129442033,-500.0,0.00015469,2]
[326603668,1715129442043,-583.93,0.00015469,2]
[326603669,1715129442058,-151.0,0.00015469,2]
[326603670,1715129442068,-500.0,0.00015469,2]
[326603671,1715129442077,-12276.08,0.00015469,2]
[326603672,1715129442088,-500.0,0.00015469,2]
[326603673,1715129442097,-971.69,0.00015469,2]
[326603674,1715129442107,-500.0,0.00015469,2]
[326603675,1715129442117,-1265.57,0.00015469,2]
[326603676,1715129442127,-1088.62,0.00015469,2]
[326603677,1715129442137,-672.34,0.00015469,2]
[326603678,1715129442147,-500.0,0.00015469,2]
[326603679,1715129442156,-500.0,0.00015469,2]
[326603680,1715129442167,-3993.24,0.00015469,2]
[326603681,1715129442176,-500.38,0.00015469,2]
[326603682,1715129442186,-1782.64,0.00015469,2]
[326603683,1715129442196,-151.0,0.00015469,2]
[326603684,1715129442205,-2165.67,0.00015469,2]
[326603685,1715129442214,-500.0,0.00015469,2]
[326603686,1715129442224,-500.0,0.00015469,2]
[326603687,1715129442235,-500.0,0.00015469,2]
[326603688,1715129442245,-151.0,0.00015469,2]
[326603689,1715129442255,-151.0,0.00015469,2]
[326603690,1715129442264,-151.0,0.00015469,2]
[326603691,1715129442274,-151.0,0.00015469,2]
[326603692,1715129442283,-1932.03,0.00015469,2]
[326603693,1715129442293,-942.02,0.00015469,2]
[326603694,1715129442303,-1655.74,0.00015469,2]
[326603695,1715129442313,-500.0,0.00015469,2]
[326603696,1715129442322,-1797.64,0.00015469,2]
[326603697,1715129442332,-500.0,0.00015469,2]
[326603698,1715129442341,-563.16,0.00015469,2]
[326603699,1715129442351,-1862.18,0.00015469,2]
[326603700,1715129442361,-3031.26,0.00015469,2]
[326603701,1715129442371,-207.95,0.00015469,2]
[326603702,1715129442381,-500.0,0.00015469,2]
[326603703,1715129442391,-2304.01,0.00015469,2]
[326603704,1715129442401,-500.0,0.00015469,2]
[326603705,1715129442411,-500.0,0.0001547,2]
[326603706,1715129442422,-500.0,0.0001547,2]
[326603707,1715129442432,-500.0,0.0001547,2]
[326603708,1715129442442,-500.0,0.0001547,2]
[326603709,1715129442451,-500.0,0.0001547,2]
[326603710,1715129442461,-522.46,0.0001547,2]
[326603711,1715129442471,-500.0,0.0001547,2]
[326603712,1715129442481,-500.0,0.0001547,2]
[326603713,1715129442490,-500.0,0.0001547,2]
[326603714,1715129442500,-500.0,0.0001547,2]
[326603715,1715129442509,-500.0,0.0001547,2]
[326603716,1715129442519,-500.0,0.0001547,2]
[326603717,1715129442529,-500.0,0.0001547,2]
[326603718,1715129442538,-500.0,0.0001547,2]
[326603719,1715129442547,-500.0,0.0001547,2]
[326603720,1715129442557,-500.0,0.0001547,2]
[326603721,1715129442566,-500.0,0.0001547,2]
[326603722,1715129442576,-500.0,0.0001547,2]
[326603723,1715129442586,-769.01,0.0001547,2]
[326603724,1715129442595,-500.0,0.0001547,2]
[326603725,1715129442605,-500.0,0.0001547,2]
[326603726,1715129442614,-500.0,0.0001547,2]
[326603727,1715129442624,-500.0,0.0001547,2]
[326603728,1715129442634,-1160.64,0.0001547,2]
[326603729,1715129442644,-152.00823154,0.0001547,2]
[326603730,1715129442653,-500.0,0.0001547,2]
[326603731,1715129442665,-500.0,0.0001547,2]
[326603732,1715129442676,-500.0,0.0001547,2]
[326603733,1715129442685,-683.07,0.0001547,2]
[326603734,1715129442694,-500.0,0.0001547,2]
[326603735,1715129442703,-569.66332142,0.0001547,2]
[326603736,1715129442713,-500.0,0.0001547,2]
[326603737,1715129442722,-500.0,0.0001547,2]
[326603738,1715129442731,-500.0,0.0001547,2]
[326603739,1715129442740,-151.0,0.0001547,2]
[326603740,1715129442749,-151.0,0.0001547,2]
[326603741,1715129442758,-500.0,0.0001547,2]
[326603742,1715129442767,-500.0,0.0001547,2]
[326603743,1715129442777,-500.0,0.0001547,2]
[326603744,1715129442786,-500.0,0.0001547,2]
[326603745,1715129442796,-500.0,0.0001547,2]
[326603746,1715129442805,-151.0,0.0001547,2]
[326603747,1715129442816,-151.0,0.0001547,2]
[326603748,1715129442826,-500.0,0.0001547,2]
[326603749,1715129442835,-152.67515821,0.00015643,2]
[326603750,1715129442845,-431.34531645,0.00015644,2]
[326603751,1715129442854,-3158.33,0.00015742,2]
[326603752,1715129442864,-3570.57,0.00015742,2]
[326603753,1715129442873,-500.0,0.00015742,2]
[326603754,1715129442883,-500.0,0.00015742,2]
[326603755,1715129442892,-500.0,0.00015742,2]
[326603756,1715129442902,-500.0,0.00015742,2]
[326603757,1715129442914,-500.0,0.00015742,2]
[326603758,1715129442924,-2274.47,0.00015742,2]
[326603759,1715129442933,-875.9,0.00015742,2]
[326603760,1715129442942,-1195.06518422,0.00015742,2]
[326603761,1715129442959,-80.27481578,0.00015742,2]
[326603762,1715129442968,-188.69499629,0.00015742,2]
[326603764,1715129445827,-311.30500371,0.00015742,2]
[326603767,1715129445836,-111.13998111,0.00015742,2]
[326603826,1715130361922,291.03921375,0.00025,60]
[326603836,1715130633021,-179.77079047,0.00015093,2]
[326603837,1715130633031,-322.52545276,0.00015093,2]
[326603839,1715130633041,-250.20884188,0.00015191,2]
[326603841,1715130633050,-156.06290913,0.00015191,2]
[326603844,1715130633059,-267.20341815,0.00015191,2]
[326603847,1715130633069,-227.62198981,0.00015191,2]
[326603851,1715130633079,-188.32125881,0.00015191,2]
[326603853,1715130633088,-158.07345455,0.00015191,2]
[326603855,1715130633097,-254.28664054,0.00015191,2]
[326603857,1715130633107,-154.84504687,0.00015191,2]
[326603859,1715130633116,-205.03706654,0.00015191,2]
[326603860,1715130633125,-785.32231489,0.00015191,2]
[326603862,1715130633134,-357.61778551,0.00015191,2]
[326603864,1715130633144,-155.37166991,0.00015191,2]
[326603866,1715130633153,-1853.49185713,0.00015191,2]
[326603868,1715130633162,-155.3497844,0.00015191,2]
[326603869,1715130633172,-285.93150749,0.00015191,2]
[326603870,1715130633181,-379.78316757,0.00015191,2]
[326603871,1715130633191,-262.73568226,0.00015191,2]
[326603872,1715130633201,-307.60705671,0.00015191,2]
[326603873,1715130633210,-397.26833046,0.00015191,2]
[326603874,1715130633219,-314.36756752,0.00015192,2]
[326603875,1715130633228,-250.30585746,0.00015192,2]
[326603876,1715130633238,-307.49724573,0.00015192,2]
[326603877,1715130633247,-171.72456816,0.00015192,2]
[326603878,1715130633258,-223.6823407,0.00015192,2]
[326603879,1715130633267,-244.95688914,0.00015192,2]
[326603880,1715130633276,-301.01592841,0.00015192,2]
[326603881,1715130633286,-2102.35981509,0.00015192,2]
[326603882,1715130633295,-262.03251466,0.00015192,2]
[326603883,1715130633304,-1215.59712732,0.00015192,2]
[326603884,1715130633313,-234.52792486,0.00015192,2]
[326603885,1715130633322,-500.0,0.00015192,2]
[326603886,1715130633331,-3570.57,0.00015192,2]
[326603887,1715130633340,-3158.33,0.00015192,2]
[326603888,1715130633349,-500.0,0.00015192,2]
[326603889,1715130633358,-500.0,0.00015192,2]
[326603890,1715130633367,-500.0,0.00015192,2]
[326603891,1715130633376,-500.0,0.00015192,2]
[326603892,1715130633386,-500.0,0.00015192,2]
[326603893,1715130633395,-2274.47,0.00015192,2]
[326603894,1715130633404,-875.9,0.00015192,2]
[326603895,1715130633414,-1272.0,0.00015192,2]
[326603896,1715130633424,-500.0,0.00015192,2]
[326603897,1715130633437,-500.0,0.00015192,2]
[326603898,1715130633448,-305.08578406,0.00015193,2]
[326603899,1715130633458,-154.64431807,0.00015193,2]
[326603900,1715130633467,-506.67,0.00015193,2]
[326603901,1715130633477,-500.0,0.00015193,2]
[326603902,1715130633486,-500.0,0.00015193,2]
[326603903,1715130633495,-500.0,0.00015193,2]
[326603904,1715130633505,-1097.35,0.00015193,2]
[326603905,1715130633514,-500.0,0.00015193,2]
[326603906,1715130633524,-556.05,0.00015193,2]
[326603907,1715130633533,-500.0,0.00015193,2]
[326603908,1715130633542,-560.63,0.00015193,2]
[326603909,1715130633552,-500.0,0.00015193,2]
[326603910,1715130633561,-500.0,0.00015193,2]
[326603911,1715130633571,-500.0,0.00015193,2]
[326603912,1715130633580,-500.0,0.00015193,2]
[326603913,1715130633590,-500.0,0.00015193,2]
[326603914,1715130633599,-500.0,0.00015193,2]
[326603915,1715130633609,-1134.47,0.00015193,2]
[326603916,1715130633618,-500.84800805,0.00015193,2]
[326603917,1715130633627,-500.0,0.00015193,2]
[326603918,1715130633637,-411.33645221,0.00015193,2]
[326603919,1715130633646,-500.0,0.00015193,2]
[326603920,1715130633656,-500.0,0.00015193,2]
[326603921,1715130633665,-500.0,0.00015193,2]
[326603922,1715130633674,-500.0,0.00015193,2]
[326603923,1715130633684,-152.37989208,0.00015193,2]
[326603955,1715130639525,-500.0,0.00015192,2]
[326603958,1715130639536,-500.0,0.00015192,2]
[326603963,1715130639546,-2151.63010792,0.00015193,2]
[326603966,1715130639555,-500.0,0.00015193,2]
[326603969,1715130639565,-457.5331755,0.00015193,2]
[326603973,1715130639577,-608.4468245,0.00015193,2]
[326603976,1715130639588,-500.0,0.00015193,2]
[326603979,1715130639597,-500.0,0.00015193,2]
[326603982,1715130639606,-500.0,0.00015193,2]
[326603984,1715130639616,-12276.08,0.00015193,2]
[326603987,1715130639626,-500.0,0.00015193,2]
[326603990,1715130639635,-500.0,0.00015193,2]
[326603993,1715130639644,-500.38,0.00015193,2]
[326603996,1715130639655,-971.69,0.00015193,2]
[326603998,1715130639664,-500.0,0.00015193,2]
[326604001,1715130639674,-500.0,0.00015193,2]
[326604005,1715130639683,-500.0,0.00015193,2]
[326604007,1715130639692,-500.0,0.00015193,2]
[326604010,1715130639702,-1265.57,0.00015193,2]
[326604013,1715130639711,-500.0,0.00015193,2]
[326604016,1715130639720,-583.93,0.00015193,2]
[326604019,1715130639730,-500.0,0.00015193,2]
[326604021,1715130639739,-500.0,0.00015193,2]
[326604023,1715130639748,-500.0,0.00015193,2]
[326604025,1715130639758,-672.34,0.00015193,2]
[326604027,1715130639767,-500.0,0.00015193,2]
[326604029,1715130639776,-500.07191376,0.00015193,2]
[326604031,1715130639786,-500.0,0.00015193,2]
[326604033,1715130639796,-297.301868,0.00015193,2]
[326604035,1715130639805,-3993.24,0.00015193,2]
[326604037,1715130639815,-516.37206186,0.00015193,2]
[326604039,1715130639824,-942.02,0.00015193,2]
[326604041,1715130639835,-500.0,0.00015193,2]
[326604043,1715130639844,-500.0,0.00015193,2]
[326604045,1715130639854,-507.82771562,0.00015193,2]
[326604047,1715130639863,-1088.62,0.00015193,2]
[326604049,1715130639873,-1782.64,0.00015193,2]
[326604051,1715130639883,-500.0,0.00015193,2]
[326604053,1715130639893,-500.0,0.00015193,2]
[326604055,1715130639902,-509.58,0.00015193,2]
[326604057,1715130639912,-2165.67,0.00015193,2]
[326604059,1715130639921,-500.0,0.00015193,2]
[326604061,1715130639931,-500.0,0.00015193,2]
[326604063,1715130639940,-500.0,0.00015193,2]
[326604065,1715130639950,-154.74780685,0.00015193,2]
[326604067,1715130639959,-500.0,0.00015193,2]
[326604069,1715130639968,-500.0,0.00015193,2]
[326604071,1715130639977,-500.0,0.00015193,2]
[326604073,1715130639987,-500.0,0.00015193,2]
[326604075,1715130639996,-500.0,0.00015193,2]
[326604076,1715130640006,-500.0,0.00015193,2]
[326604078,1715130640015,-500.0,0.00015193,2]
[326604080,1715130640025,-500.0,0.00015193,2]
[326604082,1715130640034,-323.82295741,0.00015193,2]
[326604084,1715130640044,-500.0,0.00015193,2]
[326604085,1715130640053,-500.0,0.00015193,2]
[326604086,1715130640062,-485.4362311,0.00015193,2]
[326604087,1715130640071,-1655.74,0.00015193,2]
[326604088,1715130640081,-500.0,0.00015193,2]
[326604089,1715130640090,-500.0,0.00015193,2]
[326604090,1715130640099,-500.0,0.00015193,2]
[326604091,1715130640108,-500.0,0.00015193,2]
[326604092,1715130640118,-1797.64,0.00015193,2]
[326604093,1715130640129,-833.33,0.00015193,2]
[326604094,1715130640139,-500.0,0.00015193,2]
[326604095,1715130640148,-500.0,0.00015193,2]
[326604096,1715130640158,-1932.03,0.00015193,2]
[326604097,1715130640167,-500.0,0.00015193,2]
[326604098,1715130640177,-500.0,0.00015193,2]
[326604099,1715130640186,-500.0,0.00015193,2]
[326604100,1715130640195,-500.0,0.00015193,2]
[326604101,1715130640205,-500.0,0.00015193,2]
[326604102,1715130640214,-500.0,0.00015193,2]
[326604103,1715130640223,-1974.17,0.00015193,2]
[326604104,1715130640233,-500.0,0.00015193,2]
[326604105,1715130640242,-500.0,0.00015193,2]
[326604106,1715130640251,-164.55,0.00015193,2]
[326604107,1715130640261,-500.0,0.00015193,2]
[326604108,1715130640270,-501.71709557,0.00015193,2]
[326604109,1715130640280,-500.0,0.00015193,2]
[326604110,1715130640289,-500.0,0.00015193,2]
[326604111,1715130640298,-500.0,0.00015193,2]
[326604112,1715130640307,-3031.26,0.00015193,2]
[326604113,1715130640316,-500.0,0.00015193,2]
[326604114,1715130640325,-309.30495823,0.00015193,2]
[326604115,1715130640334,-500.0,0.00015193,2]
[326604116,1715130640344,-500.0,0.00015193,2]
[326604117,1715130640353,-500.0,0.00015193,2]
[326604118,1715130640362,-500.0,0.00015194,2]
[326604119,1715130640372,-500.0,0.00015194,2]
[326604120,1715130640381,-769.01,0.00015194,2]
[326604121,1715130640391,-500.0,0.00015194,2]
[326604122,1715130640400,-500.0,0.00015194,2]
[326604123,1715130640409,-500.0,0.00015194,2]
[326604124,1715130640421,-502.0084024,0.00015194,2]
[326604125,1715130640431,-313.42466017,0.00015194,2]
[326604126,1715130640440,-500.0,0.00015194,2]
[326604127,1715130640451,-500.0,0.00015194,2]
[326604128,1715130640461,-500.0,0.00015194,2]
[326604129,1715130640471,-1160.64,0.00015194,2]
[326604130,1715130640480,-500.0,0.00015194,2]
[326604131,1715130640490,-500.0,0.00015194,2]
[326604132,1715130640501,-644.26317025,0.00015195,2]
[326604133,1715130640510,-500.0,0.00015195,2]
[326604134,1715130640520,-585.41723663,0.00015195,2]
[326604135,1715130640530,-500.0,0.00015195,2]
[326604136,1715130640539,-151.14814863,0.00015195,2]
[326604137,1715130640549,-654.61,0.00015195,2]
[326604138,1715130640558,-569.66332142,0.00015195,2]
[326604139,1715130640568,-500.0,0.00015195,2]
[326604140,1715130640577,-500.0,0.00015195,2]
[326604141,1715130640586,-500.0,0.00015195,2]
[326604142,1715130640597,-500.0,0.00015195,2]
[326604143,1715130640606,-500.0,0.00015195,2]
[326604144,1715130640615,-500.0,0.00015195,2]
[326604145,1715130640625,-500.0,0.00015195,2]
[326604146,1715130640634,-500.0,0.00015195,2]
[326604147,1715130640643,-500.0,0.00015195,2]
[326604148,1715130640653,-411.04754987,0.00015195,2]
[326604149,1715130640662,-500.0,0.00015195,2]
[326604150,1715130640672,-506.547353,0.00015195,2]
[326604151,1715130640682,-500.0,0.00015195,2]
[326604152,1715130640692,-500.0,0.00015195,2]
[326604153,1715130640703,-501.24092893,0.00015195,2]
[326604154,1715130640713,-501.24575537,0.00015195,2]
[326604155,1715130640722,-500.94397123,0.00015195,2]
[326604156,1715130640732,-500.0,0.00015195,2]
[326604157,1715130640741,-465.74112308,0.00015195,2]
[326604158,1715130640751,-500.0,0.00015195,2]
[326604159,1715130640760,-500.0,0.00015195,2]
[326604160,1715130640770,-500.0,0.00015195,2]
[326604161,1715130640779,-251.27224433,0.00015195,2]
[326604162,1715130640788,-620.01198991,0.00015352,2]
[326604163,1715130640798,-500.0,0.00015466,2]
[326604164,1715130640808,-3570.57,0.00015466,2]
[326604165,1715130640818,-3158.33,0.00015466,2]
[326604166,1715130640827,-500.0,0.00015466,2]
[326604167,1715130640837,-500.0,0.00015466,2]
[326604168,1715130640846,-500.0,0.00015466,2]
[326604169,1715130640855,-500.0,0.00015466,2]
[326604170,1715130640865,-500.0,0.00015466,2]
[326604171,1715130640874,-2274.47,0.00015466,2]
[326604172,1715130640883,-875.9,0.00015466,2]
[326604173,1715130640893,-1272.0,0.00015466,2]
[326604174,1715130640902,-500.0,0.00015466,2]
[326604175,1715130640912,-500.0,0.00015466,2]
[326604176,1715130640921,-506.67,0.00015467,2]
[326604177,1715130640931,-500.0,0.00015467,2]
[326604178,1715130640940,-500.0,0.00015467,2]
[326604179,1715130640951,-500.0,0.00015467,2]
[326604180,1715130640961,-1097.35,0.00015467,2]
[326604181,1715130640970,-556.05,0.00015467,2]
[326604182,1715130640980,-500.0,0.00015467,2]
[326604183,1715130640989,-500.0,0.00015467,2]
[326604184,1715130640999,-560.63,0.00015467,2]
[326604185,1715130641009,-500.0,0.00015467,2]
[326604186,1715130641019,-500.0,0.00015467,2]
[326604187,1715130641028,-500.0,0.00015467,2]
[326604188,1715130641038,-500.0,0.00015467,2]
[326604189,1715130641048,-1134.47,0.00015467,2]
[326604190,1715130641057,-500.0,0.00015467,2]
[326604191,1715130641067,-500.0,0.00015467,2]
[326604192,1715130641211,-2304.01,0.00015467,2]
[326604193,1715130641221,-1065.98,0.00015467,2]
[326604194,1715130641231,-500.0,0.00015467,2]
[326604195,1715130641240,-500.0,0.00015467,2]
[326604196,1715130641249,-500.0,0.00015467,2]
[326604197,1715130641259,-12276.08,0.00015467,2]
[326604198,1715130641269,-500.0,0.00015467,2]
[326604199,1715130641278,-500.38,0.00015467,2]
[326604200,1715130641288,-971.69,0.00015467,2]
[326604201,1715130641297,-370.87043588,0.00015467,2]
[326604202,1715130641308,-1265.57,0.00015467,2]
[326604203,1715130641317,-500.0,0.00015467,2]
[326604204,1715130641326,-583.93,0.00015467,2]
[326604205,1715130641336,-500.0,0.00015467,2]
[326604207,1715130641345,-500.0,0.00015467,2]
[326604208,1715130641354,-672.34,0.00015467,2]
[326604210,1715130641363,-500.0,0.00015467,2]
[326604212,1715130641373,-500.0,0.00015467,2]
[326604213,1715130641382,-3993.24,0.00015467,2]
[326604214,1715130641391,-942.02,0.00015467,2]
[326604216,1715130641400,-500.0,0.00015467,2]
[326604218,1715130641410,-500.0,0.00015467,2]
[326604219,1715130641420,-1088.62,0.00015467,2]
[326604220,1715130641432,-1782.64,0.00015467,2]
[326604221,1715130641441,-500.0,0.00015467,2]
[326604222,1715130641450,-500.0,0.00015467,2]
[326604223,1715130641460,-2165.67,0.00015467,2]
[326604224,1715130641470,-500.0,0.00015467,2]
[326604225,1715130641480,-500.0,0.00015467,2]
[326604226,1715130641490,-500.0,0.00015467,2]
[326604227,1715130641500,-151.0,0.00015467,2]
[326604228,1715130641510,-500.0,0.00015467,2]
[326604229,1715130641521,-151.0,0.00015467,2]
[326604230,1715130641531,-500.0,0.00015467,2]
[326604231,1715130641539,-1655.74,0.00015467,2]
[326604232,1715130641549,-207.95,0.00015467,2]
[326604233,1715130641558,-500.0,0.00015467,2]
[326604234,1715130641567,-500.0,0.00015467,2]
[326604235,1715130641576,-1797.64,0.00015467,2]
[326604236,1715130641586,-833.33,0.00015467,2]
[326604237,1715130641595,-1932.03,0.00015467,2]